bitfinex/quotes_BTCUSD_20241223
["timestamp","ask_amount","ask_price","bid_price","bid_amount"]
[1734939706217,0.209578,95430.0,95423.0,0.001]
[1734939706366,0.20957,95434.0,95423.0,0.001]
[1734939707626,0.20957,95434.0,95421.0,0.209596]
[1734939708162,0.20957,95434.0,95423.0,0.001]
[1734939708569,0.20957,95434.0,95421.0,0.209596]
[1734939709025,0.20957,95434.0,95421.0,0.210596]
[1734939709827,0.20957,95434.0,95421.0,0.001]
[1734939710715,0.41914,95434.0,95421.0,0.210596]
[1734939710919,0.209591,95424.0,95421.0,0.001]
[1734939711069,0.0794,95423.0,95421.0,0.001]
[1734939711851,0.209595,95422.0,95417.0,0.03624611]
[1734939712066,0.209595,95422.0,95421.0,0.004]
[1734939712260,0.419191,95422.0,95421.0,0.007]
[1734939712531,0.419191,95422.0,95421.0,0.003]
[1734939712707,0.419191,95422.0,95421.0,0.007]
[1734939713127,0.209595,95422.0,95421.0,0.007]
[1734939713577,0.209595,95422.0,95421.0,0.004]
[1734939713778,0.0794,95423.0,95421.0,0.004]
[1734939713955,0.0794,95423.0,95417.0,0.03624611]
[1734939714156,0.209595,95422.0,95417.0,0.03624611]
[1734939714373,0.209595,95422.0,95421.0,0.003]
[1734939714570,0.209595,95422.0,95417.0,0.03924611]
[1734939714796,0.209595,95422.0,95417.0,0.03624611]
[1734939715638,0.210595,95422.0,95417.0,0.03624611]
[1734939716410,0.420191,95422.0,95417.0,0.03624611]
[1734939716814,0.210595,95422.0,95421.0,8.56e-05]
[1734939717027,0.211595,95422.0,95421.0,8.56e-05]
[1734939717781,0.209595,95422.0,95421.0,8.56e-05]
[1734939718138,0.210595,95422.0,95421.0,8.56e-05]
[1734939720557,0.001,95422.0,95421.0,8.56e-05]
[1734939729936,0.00230997,95422.0,95421.0,8.56e-05]
[1734939730172,0.001,95422.0,95421.0,8.56e-05]
[1734939731127,0.001,95422.0,95421.0,0.2096826]
[1734939731550,0.076,95432.0,95421.0,0.2096826]
[1734939731915,0.076,95432.0,95421.0,0.2166826]
[1734939732743,0.076,95432.0,95421.0,0.2176826]
[1734939733161,0.076,95432.0,95421.0,0.2166826]
[1734939733588,0.076,95432.0,95421.0,0.2116826]
[1734939733757,0.076,95432.0,95421.0,0.2146826]
[1734939734823,0.076,95432.0,95421.0,0.005]
[1734939735741,0.209579,95429.0,95421.0,0.005]
[1734939736687,0.209579,95429.0,95421.0,0.003]
[1734939736896,0.209579,95429.0,95417.0,0.24585111]
[1734939737091,0.209576,95431.0,95421.0,0.005]
[1734939737716,0.209579,95429.0,95421.0,0.003]
[1734939737961,0.209579,95429.0,95417.0,0.34715951]
[1734939738088,0.209589,95425.0,95421.0,0.003]
[1734939738492,0.419178,95425.0,95421.0,0.003]
[1734939739699,0.419178,95425.0,95417.0,0.03624611]
[1734939740241,0.419178,95425.0,95421.0,0.0070856]
[1734939740651,0.419178,95425.0,95421.0,0.0050856]
[1734939740859,0.209589,95425.0,95421.0,0.0050856]
[1734939741052,0.209589,95425.0,95421.0,8.56e-05]
[1734939741807,0.209589,95425.0,95421.0,0.0030856]
[1734939742958,0.209589,95425.0,95421.0,0.0080856]
[1734939743422,0.209589,95425.0,95421.0,0.0050856]
[1734939743618,0.419178,95425.0,95421.0,8.56e-05]
[1734939743818,0.209593,95423.0,95421.0,0.0020856]
[1734939744029,0.209593,95423.0,95421.0,0.0040856]
[1734939744030,0.07710998,95422.0,95421.0,0.0040856]
[1734939744268,0.17841838,95422.0,95421.0,0.0020856]
[1734939744475,0.0758,95422.0,95421.0,0.0020856]
[1734939745055,0.07711003,95422.0,95421.0,8.56e-05]
[1734939746201,0.07711003,95422.0,95421.0,0.0020856]
[1734939746409,0.07711003,95422.0,95421.0,8.56e-05]
[1734939746607,0.07711003,95422.0,95421.0,0.0040856]
[1734939746608,0.12641003,95422.0,95421.0,0.0040856]
[1734939747771,0.15916211,95422.0,95421.0,0.0040856]
[1734939749028,0.15916211,95422.0,95421.0,0.0020856]
[1734939749434,0.16116211,95422.0,95421.0,0.0020856]
[1734939749652,0.16116211,95422.0,95421.0,8.56e-05]
[1734939759979,0.20963,95407.0,95396.0,0.209652]
[1734939760163,0.21016341,95407.0,95396.0,0.3109604]
[1734939761154,0.209637,95403.0,95394.0,0.03111221]
[1734939761315,0.0808,95406.0,95396.0,0.003]
[1734939761512,0.00131025,95405.0,95396.0,0.003]
[1734939762203,0.00131025,95405.0,95396.0,0.008]
[1734939762379,0.00131025,95405.0,95396.0,0.003]
[1734939762802,0.00131025,95405.0,95396.0,0.009]
[1734939763017,0.00053341,95407.0,95392.0,0.03166829]
[1734939763180,0.00053341,95407.0,95405.0,0.209631]
[1734939763573,0.00053341,95407.0,95406.0,0.2016084]
[1734939763774,0.00053341,95407.0,95406.0,0.3980084]
[1734939764012,0.0001712,95429.0,95423.0,0.209592]
[1734939764163,0.00012849,95426.0,95424.0,0.0773]
[1734939764911,0.00012849,95426.0,95423.0,0.209592]
[1734939765642,0.00012849,95426.0,95423.0,0.419185]
[1734939765992,0.00012849,95426.0,95423.0,0.422185]
[1734939766395,0.00012849,95426.0,95423.0,0.212592]
[1734939766602,0.00012849,95426.0,95423.0,0.209592]
[1734939767067,0.00012849,95426.0,95424.0,0.006]
[1734939768933,0.00012849,95426.0,95423.0,0.209592]
[1734939769129,0.00012849,95426.0,95424.0,0.003]
[1734939769730,0.00012849,95426.0,95425.0,0.3108964]
[1734939769969,0.00012849,95426.0,95425.0,0.5065964]
[1734939770177,0.00012849,95426.0,95425.0,0.7008964]
[1734939770374,0.17530491,95461.0,95434.0,0.1]
[1734939770584,0.09340491,95461.0,95453.0,0.419052]
[1734939770791,0.09340491,95464.0,95453.0,0.419052]
[1734939771215,0.09340491,95464.0,95455.0,0.419044]
[1734939771651,0.09340491,95464.0,95455.0,0.209522]
[1734939771860,0.30290891,95464.0,95454.0,0.1013084]
[1734939772059,0.09340491,95464.0,95454.0,0.1013084]
[1734939772299,0.209492,95469.0,95454.0,0.1013084]
[1734939772509,0.00130935,95468.0,95454.0,0.1013084]
[1734939772716,0.209492,95469.0,95455.0,0.209522]
[1734939772959,0.209492,95469.0,95454.0,0.001]
[1734939772960,0.00031636,95458.0,95454.0,0.001]
[1734939773493,0.00031636,95458.0,95454.0,0.211523]
[1734939773741,0.00031636,95458.0,95454.0,0.2406761]
[1734939773938,0.00031636,95458.0,95455.0,0.001]
[1734939775407,0.00031636,95458.0,95454.0,0.210524]
[1734939775632,0.00031636,95458.0,95454.0,0.211524]
[1734939775926,0.00031636,95458.0,95454.0,0.210524]
[1734939776100,0.00031636,95458.0,95455.0,0.001]
[1734939776420,0.00031636,95458.0,95454.0,0.209524]
[1734939776421,0.00031636,95458.0,95456.0,0.20952]
[1734939777583,0.00031636,95458.0,95455.0,0.001]
[1734939777778,0.00031636,95458.0,95454.0,0.209524]
[1734939778753,0.00031636,95458.0,95456.0,0.001]
[1734939779187,0.00031636,95458.0,95456.0,0.005]
[1734939780413,0.00031636,95458.0,95456.0,0.008]
[1734939786735,0.00031636,95458.0,95457.0,0.209518]
[1734939788021,0.00031636,95458.0,95457.0,0.214518]
[1734939788363,0.00031636,95458.0,95457.0,0.005]
[1734939789146,0.00031636,95458.0,95457.0,0.008]
[1734939794355,0.00031636,95458.0,95457.0,0.217518]
[1734939794675,0.00031636,95458.0,95457.0,0.008]
[1734939795666,0.00031636,95458.0,95457.0,0.1093084]
[1734939806352,0.00031636,95458.0,95457.0,0.3285084]
[1734939808253,0.0756855,95480.0,95457.0,0.3285084]
[1734939808453,0.0756855,95480.0,95479.0,0.20947]
[1734939809109,0.0756855,95480.0,95470.0,0.12694869]
[1734939809451,0.0766855,95480.0,95471.0,0.1013084]
[1734939809632,0.0766855,95480.0,95471.0,0.3107954]
[1734939810015,0.21077913,95479.0,95464.0,0.209501]
[1734939810239,0.21077913,95479.0,95469.0,0.12694869]
[1734939811168,0.20947,95479.0,95469.0,0.12694869]
[1734939811817,0.0756855,95480.0,95470.0,0.1013084]
[1734939812257,0.001,95479.0,95474.0,0.418961]
[1734939812556,0.0756855,95480.0,95474.0,0.20948]
[1734939812711,0.0756855,95480.0,95479.0,0.20947]
[1734939814456,8.55e-05,95480.0,95479.0,0.20947]
[1734939814636,8.55e-05,95480.0,95475.0,0.209478]
[1734939814831,8.55e-05,95480.0,95477.0,0.209474]
[1734939815045,8.55e-05,95480.0,95476.0,0.1013084]
[1734939815271,8.55e-05,95480.0,95479.0,0.001]
[1734939815901,0.0793,95479.0,95469.0,0.25979753]
[1734939816085,8.55e-05,95480.0,95469.0,0.25979753]
[1734939816086,0.0793,95470.0,95469.0,0.25979753]
[1734939816286,0.0793,95470.0,95469.0,0.13284884]
[1734939816975,0.0793,95470.0,95469.0,0.03887328]
[1734939817144,0.0793,95470.0,95469.0,0.04287328]
[1734939817328,0.0793,95470.0,95469.0,0.004]
[1734939817523,0.0793,95470.0,95462.0,0.15]
[1734939817724,0.0793,95470.0,95469.0,0.003]
[1734939819289,0.0793,95470.0,95469.0,0.005]
[1734939819870,0.0793,95470.0,95469.0,0.002]
[1734939820292,0.0793,95470.0,95469.0,0.005]
[1734939820495,0.12630935,95470.0,95469.0,0.005]
[1734939820740,0.26032034,95470.0,95469.0,0.005]
[1734939820941,0.25901099,95470.0,95469.0,0.005]
[1734939821542,0.25901099,95470.0,95453.0,0.09397556]
[1734939821543,0.209525,95454.0,95453.0,0.09397556]
[1734939821737,0.292725,95454.0,95453.0,0.09397556]
[1734939822563,0.209544,95446.0,95444.0,0.12694869]
[1734939822831,0.209544,95446.0,95444.0,0.00014536]
[1734939823223,0.209544,95446.0,95444.0,0.03876286]
[1734939823561,0.209544,95446.0,95444.0,0.00014536]
[1734939824571,0.209544,95446.0,95444.0,0.00414536]
[1734939824777,0.08420967,95445.0,95444.0,0.00414536]
[1734939826203,0.08420967,95445.0,95444.0,0.00714536]
[1734939826672,0.08420967,95445.0,95444.0,0.00414536]
[1734939826904,0.08420967,95445.0,95444.0,0.00014536]
[1734939827254,0.08420967,95445.0,95444.0,0.00514536]
[1734939827464,0.08420967,95445.0,95444.0,0.00014536]
[1734939832630,0.18551807,95445.0,95444.0,0.00014536]
[1734939832844,0.1855182,95445.0,95444.0,0.00014536]
[1734939834700,0.1855182,95445.0,95444.0,0.00023096]
[1734939835312,0.0842098,95445.0,95444.0,0.00023096]
[1734939836573,0.0829,95445.0,95444.0,0.00023096]
[1734939837626,0.0814,95451.0,95444.0,0.00023096]
[1734939837971,0.209533,95450.0,95444.0,0.00023096]
[1734939839002,0.209533,95450.0,95444.0,0.03838723]
[1734939839353,0.209544,95445.0,95444.0,0.03838723]
[1734939840481,0.209535,95449.0,95444.0,0.03838723]
[1734939840709,0.20954,95447.0,95444.0,0.03938723]
[1734939841335,0.20954,95447.0,95444.0,0.04038723]
[1734939841912,0.20954,95447.0,95444.0,0.03938723]
[1734939842281,0.209533,95450.0,95444.0,0.03938723]
[1734939842631,0.209533,95450.0,95444.0,0.03838723]
[1734939843213,0.0814,95451.0,95444.0,0.03838723]
[1734939844223,0.209529,95453.0,95444.0,0.03838723]
[1734939844948,0.209529,95453.0,95440.0,0.30188892]
[1734939846276,0.209529,95453.0,95440.0,0.34086719]
[1734939846457,0.210529,95453.0,95440.0,0.34086719]
[1734939846865,0.209529,95453.0,95440.0,0.34086719]
[1734939847060,0.209529,95453.0,95440.0,0.55042219]
[1734939847262,0.001,95453.0,95444.0,0.209546]
[1734939847465,0.00112847,95453.0,95444.0,0.209546]
[1734939848092,0.00112847,95453.0,95449.0,0.209535]
[1734939848996,0.00112847,95453.0,95450.0,0.3108414]
[1734939849202,0.0782,95450.0,95440.0,0.03906387]
[1734939849452,0.0782,95442.0,95440.0,0.03906387]
[1734939849663,0.21086273,95441.0,95440.0,0.03906387]
[1734939849811,0.209553,95441.0,95440.0,0.03906387]
[1734939851180,0.209553,95441.0,95440.0,0.04306387]
[1734939851388,0.209553,95441.0,95440.0,0.04106387]
[1734939852427,0.209553,95441.0,95440.0,0.03906387]
[1734939853682,0.210553,95441.0,95440.0,0.03906387]
[1734939857050,0.209553,95441.0,95440.0,0.03906387]
[1734939857283,0.210553,95441.0,95440.0,0.03906387]
[1734939860512,0.24327074,95441.0,95440.0,0.03906387]
[1734939861156,0.24344194,95441.0,95440.0,0.03906387]
[1734939861385,0.2107242,95441.0,95440.0,0.03906387]
[1734939861673,0.24344177,95441.0,95440.0,0.03906387]
[1734939861885,0.24244177,95441.0,95440.0,0.03906387]
[1734939862113,0.24344177,95441.0,95440.0,0.03906387]
[1734939863320,0.24344177,95441.0,95440.0,8.56e-05]
[1734939864411,0.03388877,95441.0,95440.0,8.56e-05]
[1734939864622,0.0011712,95441.0,95440.0,8.56e-05]
[1734939865592,0.0001712,95441.0,95440.0,8.56e-05]
[1734939869144,0.0001712,95441.0,95440.0,0.0010856]
[1734939869918,0.0001712,95441.0,95440.0,0.102394]
[1734939870118,0.0001712,95441.0,95440.0,0.103394]
[1734939871227,0.0001712,95441.0,95440.0,0.174694]
[1734939871437,0.0001712,95441.0,95440.0,0.347694]
[1734939872186,0.0001712,95441.0,95440.0,0.346694]
[1734939872660,0.0001712,95441.0,95440.0,0.348694]
[1734939872799,0.0001712,95441.0,95440.0,0.347694]
[1734939873150,0.0001712,95441.0,95440.0,0.44467144]
[1734939873390,0.0001712,95441.0,95440.0,0.44067144]
[1734939873512,0.0001712,95441.0,95440.0,0.43867144]
[1734939873713,0.0001712,95441.0,95440.0,0.42167144]
[1734939873939,0.0001712,95441.0,95440.0,0.35037144]
[1734939874310,0.0001712,95441.0,95440.0,0.257394]
[1734939875001,0.0001712,95441.0,95440.0,0.260394]
[1734939875564,0.0001712,95441.0,95440.0,0.257394]
[1734939875964,0.0001712,95441.0,95440.0,0.253394]
[1734939876286,0.0001712,95441.0,95440.0,0.257394]
[1734939876446,0.0001712,95441.0,95440.0,0.251394]
[1734939876820,0.0001712,95441.0,95440.0,0.254394]
[1734939877029,0.0001712,95441.0,95440.0,0.259394]
[1734939877945,0.0001712,95441.0,95440.0,0.254394]
[1734939878234,0.0001712,95441.0,95440.0,0.251394]
[1734939878490,0.0001712,95441.0,95440.0,0.254394]
[1734939879264,0.0001712,95441.0,95440.0,0.256394]
[1734939879649,0.0001712,95441.0,95440.0,0.259394]
[1734939880047,0.0001712,95441.0,95440.0,0.256394]
[1734939880631,0.0001712,95441.0,95440.0,0.251394]
[1734939880841,0.0001712,95441.0,95440.0,0.256394]
[1734939881939,0.0001712,95441.0,95440.0,0.259394]
[1734939882477,0.0001712,95441.0,95440.0,0.256394]
[1734939882905,0.0001712,95441.0,95440.0,0.259394]
[1734939883199,0.0001712,95441.0,95440.0,0.254394]
[1734939883406,0.0001712,95441.0,95440.0,0.251394]
[1734939883598,0.0001712,95441.0,95440.0,0.256394]
[1734939883742,0.0001712,95441.0,95440.0,0.254394]
[1734939884247,0.0001712,95441.0,95440.0,0.259394]
[1734939884625,0.0001712,95441.0,95440.0,0.254394]
[1734939884832,0.0001712,95441.0,95440.0,0.259394]
[1734939885324,0.0001712,95441.0,95440.0,0.256394]
[1734939885734,0.0001712,95441.0,95440.0,0.259394]
[1734939886142,0.0001712,95441.0,95440.0,0.256394]
[1734939886689,0.0001712,95441.0,95440.0,0.254394]
[1734939886890,0.0001712,95441.0,95440.0,0.259394]
[1734939887221,0.0001712,95441.0,95440.0,0.256394]
[1734939887832,0.0001712,95441.0,95440.0,0.251394]
[1734939888134,0.0001712,95441.0,95440.0,0.256394]
[1734939888753,0.0001712,95441.0,95440.0,0.259394]
[1734939889214,0.0001712,95441.0,95440.0,0.256394]
[1734939889420,0.0001712,95441.0,95440.0,0.259394]
[1734939889837,0.0001712,95441.0,95440.0,0.254394]
[1734939890623,0.0001712,95441.0,95440.0,0.259394]
[1734939891017,0.0001712,95441.0,95440.0,0.254394]
[1734939891221,0.0001712,95441.0,95440.0,0.259394]
[1734939893795,0.0001712,95441.0,95440.0,0.282394]
[1734939894942,0.0001712,95441.0,95440.0,0.353694]
[1734939896422,0.0001712,95441.0,95440.0,0.44667144]
[1734939897189,0.00012847,95453.0,95441.0,0.173]
[1734939897396,0.00012847,95453.0,95452.0,0.209529]
[1734939897630,0.00012847,95453.0,95452.0,0.3108374]
[1734939899228,0.00012847,95453.0,95452.0,0.4608374]
[1734939900004,0.00012847,95453.0,95452.0,0.4658374]
[1734939900205,0.00012847,95453.0,95452.0,0.4628374]
[1734939900762,0.00012847,95453.0,95452.0,0.6069374]
[1734939900970,0.00012847,95453.0,95452.0,0.6089374]
[1734939901410,0.0001712,95458.0,95457.0,0.359518]
[1734939901607,0.0002245,95458.0,95457.0,0.4838264]
[1734939902011,0.0002245,95458.0,95457.0,0.4608264]
[1734939903514,0.0002245,95458.0,95457.0,0.4638264]
[1734939903939,0.0002245,95458.0,95457.0,0.4608264]
[1734939904319,0.0002245,95458.0,95457.0,0.4638264]
[1734939905149,0.0002245,95458.0,95457.0,0.4708264]
[1734939905324,0.0002245,95458.0,95457.0,0.4638264]
[1734939905722,0.0002245,95458.0,95457.0,0.4678264]
[1734939905901,0.0002245,95458.0,95457.0,0.4708264]
[1734939906135,0.0002245,95458.0,95457.0,0.4938264]
[1734939906563,0.0002245,95458.0,95457.0,0.4908264]
[1734939906788,0.0002245,95458.0,95457.0,0.4938264]
[1734939906963,0.0002245,95458.0,95457.0,0.4868264]
[1734939907326,0.0002245,95458.0,95457.0,0.5297264]
[1734939907650,0.0002245,95458.0,95457.0,0.5327264]
[1734939908010,8.55e-05,95480.0,95478.0,0.232472]
[1734939908222,5.331e-05,95479.0,95478.0,0.7292804]
[1734939908442,0.0001712,95499.0,95486.0,0.3213]
[1734939908682,0.01274139,95496.0,95495.0,0.382435]
[1734939908883,0.0127947,95496.0,95495.0,0.4837434]
[1734939909322,0.0127947,95496.0,95495.0,0.5837434]
[1734939910016,0.0127947,95496.0,95495.0,0.4607434]
[1734939910160,0.0127947,95496.0,95495.0,0.4727434]
[1734939910356,0.0127947,95496.0,95495.0,0.4647434]
[1734939911942,0.0127947,95496.0,95495.0,0.4727434]
[1734939912487,0.0127947,95496.0,95495.0,0.49767774]
[1734939915536,0.0127947,95496.0,95495.0,0.28824274]
[1734939915737,0.1393947,95496.0,95495.0,0.03693434]
[1734939917179,0.0932947,95496.0,95495.0,0.13824274]
[1734939921136,0.0933803,95496.0,95495.0,0.13824274]
[1734939926204,0.0128803,95496.0,95495.0,0.16124274]
[1734939926620,0.0128803,95496.0,95495.0,0.31124274]
[1734939932093,0.1377803,95496.0,95495.0,0.18693434]
[1734939932297,0.1377803,95496.0,95495.0,0.03710554]
[1734939932507,0.209418,95503.0,95495.0,0.03710554]
[1734939932508,0.0777,95520.0,95495.0,0.28841394]
[1734939932707,5.33e-05,95509.0,95508.0,0.48594051]
[1734939932910,5.33e-05,95509.0,95508.0,0.4607144]
[1734939933295,5.33e-05,95509.0,95508.0,0.48154478]
[1734939933502,5.33e-05,95509.0,95508.0,0.38023638]
[1734939933710,0.0777533,95509.0,95508.0,0.38023638]
[1734939933908,0.0777533,95509.0,95508.0,0.48154478]
[1734939935368,0.0777533,95509.0,95508.0,0.48454478]
[1734939936276,5.33e-05,95509.0,95508.0,0.48454478]
[1734939938264,5.33e-05,95509.0,95508.0,0.50631802]
[1734939945720,0.0001389,95509.0,95508.0,0.50631802]
[1734939946168,0.0001389,95509.0,95508.0,0.52931802]
[1734939946965,1e-08,95509.0,95508.0,0.52931802]
[1734939947458,0.00013121,95518.0,95517.0,0.359386]
[1734939947700,0.0006131,95518.0,95517.0,0.4836944]
[1734939947912,0.0005731,95518.0,95517.0,0.4836944]
[1734939949071,0.0005731,95518.0,95517.0,0.4876944]
[1734939949485,0.0005731,95518.0,95517.0,0.4956944]
[1734939951360,0.000171,95521.0,95518.0,0.359384]
[1734939951584,0.000171,95521.0,95520.0,0.35938]
[1734939951762,0.000171,95521.0,95520.0,0.4836884]
[1734939953227,0.000171,95521.0,95520.0,0.4896884]
[1734939954864,0.000171,95521.0,95520.0,0.4926884]
[1734939955450,0.000171,95521.0,95520.0,0.009]
[1734939955451,0.076271,95521.0,95520.0,0.009]
[1734939956348,0.076271,95521.0,95520.0,0.03141885]
[1734939956558,0.076271,95521.0,95520.0,0.02541885]
[1734939956768,0.076271,95521.0,95520.0,0.02841885]
[1734939957379,0.076271,95521.0,95520.0,0.02541885]
[1734939957722,0.076271,95521.0,95520.0,0.02641885]
[1734939958263,0.076271,95521.0,95520.0,0.33710725]
[1734939958467,0.076271,95521.0,95520.0,0.02641885]
[1734939962018,0.076271,95521.0,95520.0,0.12772725]
[1734939966849,0.076271,95521.0,95520.0,0.02641885]
[1734939969926,0.076271,95521.0,95520.0,0.33710725]
[1734939969927,0.000171,95521.0,95520.0,0.33710725]
[1734939970504,0.000171,95521.0,95520.0,0.48710725]
[1734939970711,0.000171,95524.0,95520.0,0.48710725]
[1734939970712,0.000171,95524.0,95521.0,0.382377]
[1734939970894,0.000171,95524.0,95523.0,0.209373]
[1734939971095,0.000171,95524.0,95523.0,0.4836814]
[1734939971320,0.000171,95524.0,95523.0,0.5836814]
[1734939971521,0.000171,95524.0,95523.0,0.6549814]
[1734939971733,0.000171,95524.0,95523.0,0.67645655]
[1734939971928,0.0784,95546.0,95536.0,0.209345]
[1734939972155,0.0784,95546.0,95536.0,0.3336534]
[1734939972931,0.0473,95555.0,95536.0,0.3336534]
[1734939973169,7e-05,95573.0,95537.0,0.043]
[1734939973307,7e-05,95573.0,95565.0,0.023]
[1734939973671,0.00022987,95573.0,95569.0,0.02146258]
[1734939973807,0.046,95571.0,95566.0,0.1013084]
[1734939974023,0.209272,95569.0,95557.0,0.15]
[1734939974249,0.046,95559.0,95533.0,0.09274999]
[1734939974484,0.209313,95551.0,95534.0,0.3106574]
[1734939974620,0.209299,95557.0,95549.0,0.18535912]
[1734939975277,0.287814,95550.0,95549.0,0.18535912]
[1734939975982,0.287814,95550.0,95531.0,0.15]
[1734939975983,0.209328,95544.0,95531.0,0.15]
[1734939976176,0.209328,95544.0,95533.0,0.15]
[1734939976327,0.41866,95543.0,95534.0,0.15]
[1734939976535,0.0778,95542.0,95531.0,0.01943737]
[1734939976751,0.0458,95533.0,95523.0,0.09263445]
[1734939976963,0.0765,95531.0,95523.0,0.09263445]
[1734939977369,0.0765,95531.0,95523.0,0.01962698]
[1734939977576,0.0765,95531.0,95520.0,0.33591351]
[1734939977796,0.0765,95531.0,95520.0,0.43722191]
[1734939978004,0.209358,95530.0,95520.0,0.43722191]
[1734939978180,0.209358,95530.0,95521.0,0.15]
[1734939978395,0.209358,95530.0,95523.0,0.002]
[1734939978598,0.209368,95526.0,95523.0,0.002]
[1734939978805,0.00130853,95525.0,95523.0,0.002]
[1734939978979,0.00130853,95525.0,95523.0,0.006]
[1734939979180,0.0765,95531.0,95523.0,0.006]
[1734939979429,0.209362,95528.0,95520.0,0.01809542]
[1734939979755,0.00130859,95527.0,95523.0,0.001]
[1734939980131,0.0765,95531.0,95523.0,0.001]
[1734939980466,0.0765,95531.0,95520.0,0.209379]
[1734939980467,0.285856,95531.0,95520.0,0.209379]
[1734939980714,0.285856,95531.0,95520.0,0.3106874]
[1734939981089,0.2859416,95531.0,95520.0,0.3106874]
[1734939981561,0.0765856,95531.0,95523.0,0.001]
[1734939982345,0.0765856,95531.0,95520.0,0.3106874]
[1734939982554,0.0765856,95531.0,95520.0,0.3116874]
[1734939982756,0.0765856,95531.0,95520.0,0.1023084]
[1734939982958,0.21066652,95530.0,95520.0,0.1013084]
[1734939983140,0.21066652,95530.0,95523.0,0.001]
[1734939983338,0.0765856,95531.0,95523.0,0.001]
[1734939983705,0.0765856,95531.0,95520.0,0.1013084]
[1734939983881,0.0765856,95531.0,95520.0,0.1023084]
[1734939984279,0.07789412,95531.0,95520.0,0.1023084]
[1734939984481,0.0765856,95531.0,95520.0,0.1023084]
[1734939984664,0.07789412,95531.0,95520.0,0.1023084]
[1734939985534,0.07789412,95531.0,95521.0,0.209378]
[1734939985736,0.0765856,95531.0,95521.0,0.209378]
[1734939985889,0.0765856,95531.0,95523.0,0.001]
[1734939986206,0.07789412,95531.0,95520.0,0.1013084]
[1734939986382,0.209358,95530.0,95520.0,0.1013084]
[1734939986583,0.0765856,95531.0,95520.0,0.1023084]
[1734939986791,0.0765856,95531.0,95520.0,0.1013084]
[1734939987175,0.0765856,95531.0,95523.0,0.001]
[1734939987380,0.0765856,95531.0,95521.0,0.209378]
[1734939988346,0.0765856,95531.0,95520.0,0.1013084]
[1734939988795,0.209358,95530.0,95520.0,0.1013084]
[1734939989016,0.209358,95530.0,95520.0,0.1023084]
[1734939989251,0.209377,95522.0,95520.0,0.001]
[1734939989453,0.12610865,95521.0,95520.0,0.001]
[1734939989657,0.20938,95520.0,95518.0,0.0001712]
[1734939989864,0.0809088,95519.0,95518.0,0.0001712]
[1734939990500,0.0796,95519.0,95518.0,0.0001712]
[1734939994718,0.0796,95519.0,95518.0,0.1014796]
[1734939996368,0.0796,95519.0,95518.0,0.1044796]
[1734939996987,0.0796,95519.0,95518.0,0.1054796]
[1734939997528,0.0796,95519.0,95518.0,0.1044796]
[1734939997924,0.0796,95519.0,95518.0,0.1054796]
[1734939998633,0.0782,95530.0,95519.0,0.209382]
[1734939998744,0.0782,95530.0,95528.0,0.20936]
[1734939999366,0.0782,95530.0,95528.0,0.3106684]
[1734939999574,8.56e-05,95531.0,95530.0,0.209358]
[1734940000016,8.56e-05,95531.0,95529.0,0.1013084]
[1734940000216,8.56e-05,95531.0,95530.0,0.209358]
[1734940000425,8.56e-05,95531.0,95530.0,0.4606664]
[1734940001317,8.56e-05,95531.0,95530.0,0.5041846]
[1734940002145,8.56e-05,95531.0,95530.0,0.5131846]
[1734940002521,8.56e-05,95531.0,95530.0,0.5081846]
[1734940002721,8.56e-05,95531.0,95530.0,0.5171846]
[1734940003464,8.56e-05,95531.0,95530.0,0.5131846]
[1734940003692,8.56e-05,95531.0,95530.0,0.5041846]
[1734940003823,8.56e-05,95531.0,95530.0,0.5171846]
[1734940004384,8.56e-05,95531.0,95530.0,0.5131846]
[1734940004585,8.56e-05,95531.0,95530.0,0.5171846]
[1734940005145,8.56e-05,95531.0,95530.0,0.5131846]
[1734940005345,8.56e-05,95531.0,95530.0,0.5081846]
[1734940005562,8.56e-05,95531.0,95530.0,0.5171846]
[1734940006007,8.56e-05,95531.0,95530.0,0.5081846]
[1734940006413,8.56e-05,95531.0,95530.0,0.5171846]
[1734940006757,8.56e-05,95531.0,95530.0,0.5131846]
[1734940007009,8.56e-05,95531.0,95530.0,0.5081846]
[1734940007632,8.56e-05,95531.0,95530.0,0.5041846]
[1734940007999,8.56e-05,95531.0,95530.0,0.5081846]
[1734940008744,8.56e-05,95531.0,95530.0,0.5171846]
[1734940010047,8.56e-05,95531.0,95530.0,0.5131846]
[1734940010536,8.56e-05,95531.0,95530.0,0.5081846]
[1734940011027,8.56e-05,95531.0,95530.0,0.5041846]
[1734940011283,8.56e-05,95531.0,95530.0,0.5081846]
[1734940011754,8.56e-05,95531.0,95530.0,0.5041846]
[1734940011993,8.56e-05,95531.0,95530.0,0.5131846]
[1734940012244,8.56e-05,95531.0,95530.0,0.5041846]
[1734940012492,8.56e-05,95531.0,95530.0,0.4606664]
[1734940012738,0.0801856,95531.0,95530.0,0.4606664]
[1734940012939,0.0801856,95531.0,95530.0,0.4696664]
[1734940013085,0.0801856,95531.0,95530.0,0.4736664]
[1734940013659,0.0801856,95531.0,95530.0,0.4606664]
[1734940013866,0.0801856,95531.0,95530.0,0.4646664]
[1734940014935,0.0801856,95531.0,95530.0,0.4606664]
[1734940015137,0.0801856,95531.0,95530.0,0.4696664]
[1734940015561,0.0801856,95531.0,95530.0,0.4606664]
[1734940015954,0.0801856,95531.0,95530.0,0.4696664]
[1734940016351,0.0801856,95531.0,95530.0,0.4736664]
[1734940016713,0.0801856,95531.0,95530.0,0.4738376]
[1734940025305,8.56e-05,95531.0,95530.0,0.4738376]
[1734940025868,8.56e-05,95531.0,95530.0,0.4968376]
[1734940027639,8.56e-05,95531.0,95530.0,0.83904322]
[1734940029515,8.56e-05,95531.0,95530.0,0.9780818]
[1734940029914,8.56e-05,95531.0,95530.0,1.0270818]
[1734940030319,8.56e-05,95531.0,95530.0,1.1270818]
[1734940030522,8.56e-05,95531.0,95530.0,1.34470234]
[1734940030730,6e-07,95531.0,95530.0,1.34470234]
[1734940030950,8.56e-05,95549.0,95548.0,0.382318]
[1734940031152,0.00024547,95549.0,95548.0,0.4836264]
[1734940031529,0.00024547,95549.0,95548.0,0.5303264]
[1734940031980,0.00024547,95549.0,95548.0,0.6303264]
[1734940032217,0.00024547,95549.0,95548.0,0.6383264]
[1734940032693,0.00024547,95549.0,95548.0,1.20401093]
[1734940032895,0.00024547,95549.0,95548.0,1.11301093]
[1734940033096,0.00024547,95549.0,95548.0,1.13120894]
[1734940033399,0.00024547,95549.0,95548.0,1.15230014]
[1734940033907,0.00024547,95549.0,95548.0,1.15630014]